Cogmind - Beta 10.1 @@@ ROGUE MODE // 2020.10.06 @ 04:21:56 Player: BOTHUNTER Result: Destroyed by S-27 Virus with Autogun Performance ------------- Evolutions (5) 2500 Regions Visited (20) 4000 Robots Destroyed (59) 295 Value Destroyed (2309) 2309 Prototype IDs (23) 460 Alien Tech Used (2) 400 Bonus (2528) 2528 TOTAL SCORE: 12492 Bonus ------- High Alert Combat Kills 414 Follower Combat Kills 2385 Aligned with FarCom 300 Met Zhirov 300 Friendly Fire -871 Cogmind --------- Core Integrity 0/1000 Matter 204/300 Energy 864/900 System Corruption 2% Temperature Cool (0) Movement Core (200) Ox3 Location -4/Proximity Caves Parts ------- > --- POWER (1) -------- (None) > --- PROPULSION (2) --- (None) > --- UTILITY (12) ----- Advanced Energy Well Improved Melee Analysis Suite Advanced Melee Analysis Suite Advanced Melee Analysis Suite Improved Target Analyzer Improved Hacking Suite Improved Hacking Suite Improved Hacking Suite Advanced Hacking Suite > --- WEAPON (2) ------- Neutron Cannon > --- INVENTORY (4) ---- Fission Core Experimental Propulsion Shielding Peak State ------------ > --- POWER ------------ Micro Fission Core > --- PROPULSION ------- Nuclear Pulse Array > --- UTILITY ---------- Improved Melee Analysis Suite Advanced Melee Analysis Suite Advanced Melee Analysis Suite Advanced Melee Analysis Suite Improved Hacking Suite Improved Hacking Suite Improved Hacking Suite Improved Hacking Suite Advanced System Shield Mini Drone Bay > --- WEAPON ----------- Molecular Deconstructor > --- INVENTORY -------- Light Fission Core Nuclear Pulse Array Micro-nuke Launcher [Rating: 89] Favorites ----------- Power Light Ion Engine Engine Light Ion Engine Power Core Micro Fission Core Reactor Antimatter Reactor Propulsion Cesium-ion Thruster Flight Unit Cesium-ion Thruster Utility Hacking Suite Device Weight Redist. System Storage Energy Well Processor Advanced Melee Analysis Suite Hackware Hacking Suite Protection Propulsion Shielding Weapon Chainsword Energy Gun EM Pulse Gun Energy Cannon Guided Plasma Cannon Ballistic Gun Improved Heavy Machine Gun Launcher Micro-nuke Launcher Special Weapon Mining Laser Impact Weapon Heavy Mace Slashing Weapon Chainsword Piercing Weapon Makeshift Spear Special Melee Weapon Dirty Datajack Build | -11 -10 -10 -10 -9 -8 -7 -7 -7 -7 -6 -6 -6 -6 -6 -6 -5 -5 -5 -5 -4 ------- Run | Scr Mat Min Exi Min Mat Fac Low Low Zio Pro Fac Was Fac Low Low Fac Upp Upp Zhi Pro Slots Evolved 10 | . . . . . 4 2 . . . . 2 . . . . 2 . . . . Power . | . . . . . . . . . . . . . . . . . . . . . Propulsion . | . . . . . . . . . . . . . . . . . . . . . Utility 10 | . . . . . 4 2 . . . . 2 . . . . 2 . . . . Weapon . | . . . . . . . . . . . . . . . . . . . . . Parts Attached 181 | 1 2 5 3 . 9 31 7 6 . 11 43 5 18 1 3 13 2 9 4 8 Power 16 | . . 1 . . 1 3 . . . . 1 1 3 . 3 2 . 1 . . Engine 11 | . . 1 . . 1 3 . . . . 1 . 3 . 2 . . . . . Core 4 | . . . . . . . . . . . . . . . 1 2 . 1 . . Reactor 1 | . . . . . . . . . . . . 1 . . . . . . . . Propulsion 22 | . . 3 . . 2 4 . . . . 5 . 4 1 . 2 . 1 . . Treads . | . . . . . . . . . . . . . . . . . . . . . Leg . | . . . . . . . . . . . . . . . . . . . . . Wheel . | . . . . . . . . . . . . . . . . . . . . . Hover . | . . . . . . . . . . . . . . . . . . . . . Flight 22 | . . 3 . . 2 4 . . . . 5 . 4 1 . 2 . 1 . . Utility 79 | . 2 . . . 2 16 4 1 . 2 26 2 9 . . 6 2 1 4 2 Device 25 | . . . . . . 4 1 . . 1 13 1 1 . . 3 1 . . . Storage 11 | . . . . . . 1 . . . . 5 . 1 . . . 1 . 2 1 Processor 15 | . 2 . . . 1 1 . . . . 5 . 2 . . 2 . 1 . 1 Hackware 14 | . . . . . . 5 . . . . 1 1 5 . . 1 . . 1 . Protection 14 | . . . . . 1 5 3 1 . 1 2 . . . . . . . 1 . Artifact . | . . . . . . . . . . . . . . . . . . . . . Weapon 64 | 1 . 1 3 . 4 8 3 5 . 9 11 2 2 . . 3 . 6 . 6 Energy Gun 3 | 1 . . . . 2 . . . . . . . . . . . . . . . Energy Cannon 29 | . . . 2 . . 6 2 4 . 9 3 . . . . . . . . 3 Ballistic Gun 6 | . . . . . 1 . . 1 . . 4 . . . . . . . . . Ballistic Cannon . | . . . . . . . . . . . . . . . . . . . . . Launcher 4 | . . . . . . . . . . . . 1 . . . 1 . 2 . . Special Weapon 6 | . . 1 1 . 1 . . . . . . . . . . . . 1 . 2 Impact Weapon 3 | . . . . . . 2 . . . . 1 . . . . . . . . . Slashing Weapon 11 | . . . . . . . . . . . 3 1 2 . . 2 . 2 . 1 Piercing Weapon 1 | . . . . . . . 1 . . . . . . . . . . . . . Special Melee Weapon 1 | . . . . . . . . . . . . . . . . . . 1 . . Unidentified Prototypes 13 | . . . 2 . 1 . . . . . 3 . . . . 1 . 1 4 1 Parts Lost 44 | . 1 . . . 5 . 1 . . 9 11 . . 1 . 6 1 7 . 2 Power 3 | . . . . . 1 . . . . 1 1 . . . . . . . . . Propulsion 9 | . . . . . . . . . . 2 3 . . 1 . 1 . 2 . . Utility 24 | . . . . . 2 . 1 . . 6 6 . . . . 4 1 3 . 1 Weapon 8 | . 1 . . . 2 . . . . . 1 . . . . 1 . 2 . 1 Highest Loss Streak 6 | . 1 . . . 3 . 1 . . 6 6 . . 1 . 3 1 4 . 1 Average Slot Usage (%) 65 | . 38 63 85 85 49 77 86 85 84 60 37 58 81 99 100 78 85 71 50 56 Engine 3 | . . 6 14 14 7 4 7 7 7 3 . . 4 6 3 . . . . . Flight 8 | . . 13 28 28 17 14 15 15 15 7 2 . 10 12 13 3 5 4 . . Device 5 | . . . . . . 4 7 7 7 9 8 12 11 . . 1 4 3 . . Processor 16 | . 24 28 28 28 14 2 . . . . 8 26 28 26 26 23 27 22 23 23 Hackware 17 | . . . . . . 32 31 30 30 21 2 5 13 40 40 33 29 27 22 23 Protection 5 | . . . . . . 12 20 23 23 14 7 . . . . . . . 4 3 Special Weapon 1 | . . 14 14 14 7 . . . . . . . . . . . . 1 . . Slashing Weapon 3 | . . . . . . . . . . . . 6 10 13 13 9 11 4 . . Naked Turns . | . . . . . . . . . . . . . . . . . . . . . Heaviest Build 24 | 2 2 4 4 4 7 19 24 24 14 24 20 15 15 9 19 21 13 15 1 10 Greatest Support 22 | 3 3 8 8 8 8 22 22 22 15 22 16 9 20 14 14 20 20 20 3 3 Greatest Overweight (x) 4 | . . . . . . 1 1 1 . 3 3 4 1 1 1 2 . . . 3 Average Overweight (x) . | . . . . . . . . . . . . . . . . . . . . . Largest Inventory Capacity 12 | 4 4 4 4 4 4 8 4 4 4 4 4 4 4 4 4 4 12 4 4 4 Average Capacity 4 | 4 4 4 4 4 4 4 4 4 4 4 4 4 4 4 4 4 4 4 4 4 Most Carried 5 | . 3 4 4 4 4 5 4 4 4 4 4 4 4 4 4 4 4 4 4 4 Average Carried 3 | . 1 3 3 4 3 3 3 3 4 3 3 3 3 3 3 3 4 3 3 2 Final Capacity 4 | 4 4 4 4 4 4 4 4 4 4 4 4 4 4 4 4 4 4 4 4 4 Final Carried 4 | . 3 4 4 4 4 4 4 4 4 3 4 4 3 3 4 4 4 3 4 2 Class Distribution -------------------- 47% | Mutant 34% | Hacker-Mutant 17% | Wizard-Mutant Dominant Class ---------------- Mutant | -10/Materials Mutant | -10/Mines Mutant | -10/Exiles Mutant | -9/Mines Mutant | -8/Materials Hacker-Mutant | -7/Factory Hacker-Mutant | -7/Lower Caves Hacker-Mutant | -7/Lower Caves Hacker-Mutant | -7/Zion Hacker-Mutant | -6/Proximity Caves Mutant | -6/Factory Mutant | -6/Waste Mutant | -6/Factory Wizard-Mutant | -6/Lower Caves Wizard-Mutant | -6/Lower Caves Wizard-Mutant | -5/Factory Wizard-Mutant | -5/Upper Caves Wizard-Mutant | -5/Upper Caves Hacker-Mutant | -5/Zhirov Hacker-Mutant | -4/Proximity Caves Resources | -11 -10 -10 -10 -9 -8 -7 -7 -7 -7 -6 -6 -6 -6 -6 -6 -5 -5 -5 -5 -4 ----------- Run | Scr Mat Min Exi Min Mat Fac Low Low Zio Pro Fac Was Fac Low Low Fac Upp Upp Zhi Pro Matter Collected 2227 | 160 70 50 . 30 55 216 194 84 . 70 616 138 180 10 30 41 107 94 . 82 Remotely . | . . . . . . . . . . . . . . . . . . . . . Salvage Created 2904 | . 180 . . 7 60 419 196 352 . 183 604 206 138 158 . 52 23 268 . 58 Parts 120 | . 12 . . 2 6 6 6 20 . 8 27 1 10 4 . 4 1 12 . 1 Haulers Intercepted 3 | . 1 . . . . 1 . . . . . . 1 . . . . . . . Recyclers Shooed 3 | . 1 . . . . . . . . . 2 . . . . . . . . . Parts Field Recycled . | . . . . . . . . . . . . . . . . . . . . . Retrieved Matter . | . . . . . . . . . . . . . . . . . . . . . Parts Self-Destructed 75 | . . . . . . . 3 19 . 8 . . . 13 1 . 15 15 . 1 Prevented . | . . . . . . . . . . . . . . . . . . . . . Kills | -11 -10 -10 -10 -9 -8 -7 -7 -7 -7 -6 -6 -6 -6 -6 -6 -5 -5 -5 -5 -4 ------- Run | Scr Mat Min Exi Min Mat Fac Low Low Zio Pro Fac Was Fac Low Low Fac Upp Upp Zhi Pro Combat Hostiles Destroyed 35 | . 2 1 . . 1 3 3 4 . 3 8 . . 1 . 1 1 7 . . Melee 6 | . . . . . . . . . . . 2 . . 1 . 1 1 1 . . Guns 8 | . 2 . . . 1 . . . . . 5 . . . . . . . . . Cannons 14 | . . 1 . . . 3 2 4 . 3 1 . . . . . . . . . AOE 6 | . . . . . . . . . . . . . . . . . . 6 . . Classes Destroyed 14 | . 3 1 . 2 1 3 1 1 . . 1 . . 1 . . . . . . Worker 6 | . . . . 1 . 3 . . . . 1 . 1 . . . . . . . Tunneler 2 | . . . . 1 . . . . . . . . 1 . . . . . . . Hauler 3 | . 1 . . . . 1 . . . . . . 1 . . . . . . . Recycler 3 | . . . . . . 1 . . . . 2 . . . . . . . . . Mechanic 1 | . . . . . . . . . . . 1 . . . . . . . . . Operator 4 | . 3 . . . . . . . . . 1 . . . . . . . . . Watcher 4 | . . . . . . 3 . . . . 1 . . . . . . . . . Swarmer 6 | . . 1 . . . . . 1 . . 3 . . . . . 1 . . . Grunt 10 | . 2 . . . . 1 . 1 . . . . . 1 . . . 5 . . Sentry 4 | . . . . . 1 . 1 1 . . 1 . . . . . . . . . Hunter 4 | . . . . . . . . 1 . 2 . . . . . . . 1 . . Programmer 9 | . . . . . . 2 . . . 1 4 . . . . 1 . 1 . . Samaritan 1 | . . . . . . . . . . . . . . 1 . . . . . . Thug 1 | . . . . . . . 1 . . . . . . . . . . . . . Savage 1 | . . . . . . . 1 . . . . . . . . . . . . . Best Kill Streak 5 | . 4 1 . 2 1 2 1 2 . 1 5 . 2 1 . 1 1 5 . . Combat Bots Only 5 | . 1 1 . . 1 1 1 2 . 1 3 . . 1 . 1 1 5 . . Max Kills in Single Turn 3 | . 1 1 . 1 1 1 1 1 . 1 1 . 1 1 . 1 1 3 . . Gunslinging . | . . . . . . . . . . . . . . . . . . . . . Exploded 3 | . . . . . . . . . . . . . . . . . . 3 . . Melee 1 | . . . . . . . . . . . 1 . . 1 . 1 1 1 . . Uniques/NPCs Destroyed . | . . . . . . . . . . . . . . . . . . . . . Combat | -11 -10 -10 -10 -9 -8 -7 -7 -7 -7 -6 -6 -6 -6 -6 -6 -5 -5 -5 -5 -4 -------- Run | Scr Mat Min Exi Min Mat Fac Low Low Zio Pro Fac Was Fac Low Low Fac Upp Upp Zhi Pro Damage Taken 5746 | . 246 25 . 10 328 60 107 18 . 930 1722 . 38 67 86 429 27 892 . 761 Core 2504 | . 192 . . . 104 44 37 . . 373 681 . 19 10 46 93 . 443 . 462 Absorbed by Shields . | . . . . . . . . . . . . . . . . . . . . . Core Remaining (%) 50 | 100 . . . 23 81 . . . . 35 . . . . 11 . . . . . Volleys Fired 231 | . 14 12 2 13 37 14 9 11 . 20 85 . . . . 1 . 6 . 7 Largest 2 | . 1 1 1 1 2 1 1 1 . 1 1 . . . . 1 . 1 . 1 Hottest 120 | . 40 100 120 100 120 120 120 120 . 120 120 . . . . 49 . 49 . 90 Shots Fired 231 | . 14 12 2 13 38 14 9 11 . 20 84 . . . . 1 . 6 . 7 Gun 104 | . 14 . . . 7 . . 6 . . 77 . . . . . . . . . Cannon 63 | . . . 2 . . 14 9 5 . 20 7 . . . . . . . . 6 Launcher 5 | . . . . . . . . . . . . . . . . 1 . 4 . . Special 59 | . . 12 . 13 31 . . . . . . . . . . . . 2 . 1 Kinetic 83 | . . . . . . . . 6 . . 77 . . . . . . . . . Thermal 126 | . . 12 2 13 38 14 9 5 . 20 7 . . . . . . . . 6 Explosive 5 | . . . . . . . . . . . . . . . . 1 . 4 . . Electromagnetic 14 | . 14 . . . . . . . . . . . . . . . . . . . Robot Hit Streak 13 | . 12 1 . . 3 7 12 13 . 8 11 . . . . . . 4 . 8 Robot Miss Streak 5 | . 1 1 . 2 3 . . 1 . . 5 . . . . . . . . 1 Penetration Max . | . . . . . . . . . . . . . . . . . . . . . Secondary Targets . | . . . . . . . . . . . . . . . . . . . . . Shots Hit Robots 135 | . 13 1 . . 6 10 5 7 . 2 54 7 4 7 1 7 2 5 . 4 Core Hits 88 | . 8 1 . 2 2 7 4 7 . 6 23 2 3 2 . 3 1 16 . 1 Critical Hits 6 | . . . . . . . . . . . 1 2 1 . . . 1 . . 1 Critical Kills 3 | . . . . . . . . . . . . 1 1 . . . 1 . . . Critical Parts Destroyed 3 | . . . . . . . . . . . 1 1 . . . . . . . 1 Melee Attacks 81 | . . . . . . 14 . . . . 12 7 5 9 2 23 3 6 . . Impact 14 | . . . . . . 14 . . . . . . . . . . . . . . Slashing 67 | . . . . . . . . . . . 12 7 5 9 2 23 3 6 . . Piercing . | . . . . . . . . . . . . . . . . . . . . . Sneak Attacks 8 | . . . . . . 4 . . . . . . 3 1 . . . . . . Combat Hostiles . | . . . . . . . . . . . . . . . . . . . . . Follow-up Attacks 3 | . . . . . . . . . . . . . . 1 . 1 1 . . . Damage Inflicted 7866 | . 223 48 . 48 107 1109 322 283 . 674 1698 847 395 452 45 399 97 967 . 152 Guns 1673 | . 183 . . . 96 . . 102 . . 1292 . . . . . . . . . Cannons 2103 | . . . . . . 538 322 181 . 674 236 . . . . . . . . 152 Explosions 1003 | . 40 . . . . . . . . . . . . . . 78 . 885 . . Melee 2980 | . . . . . . 571 . . . . 170 847 395 452 45 321 97 82 . . Ramming . | . . . . . . . . . . . . . . . . . . . . . Kinetic 1394 | . . . . . . . . 102 . . 1292 . . . . . . . . . Thermal 2346 | . 40 48 . 48 107 538 322 181 . 674 236 . . . . . . . . 152 Explosive 963 | . . . . . . . . . . . . . . . . 78 . 885 . . Electromagnetic 183 | . 183 . . . . . . . . . . . . . . . . . . . Impact 571 | . . . . . . 571 . . . . . . . . . . . . . . Slashing 2409 | . . . . . . . . . . . 170 847 395 452 45 321 97 82 . . Piercing . | . . . . . . . . . . . . . . . . . . . . . Highest Corruption 10 | . . . . . 10 . . . . . 4 4 2 . . . . 2 2 2 Average Corruption 2 | . . . . . 6 . . . . . 2 2 1 . . . . 1 2 2 Corruption Purged 9 | . . . . . . . . . . . 3 3 3 . . . . . . . Effects 45 | . . . . . 13 . . . . . 11 13 3 . . . . . 2 3 Message Errors 16 | . . . . . 2 . . . . . 5 6 . . . . . . 1 2 Matter Fused 7 | . . . . . 4 . . . . . 1 2 . . . . . . . . Heat Flow Errors 6 | . . . . . 1 . . . . . 2 2 1 . . . . . . . Energy Discharges 5 | . . . . . 2 . . . . . 1 . 1 . . . . . 1 . Parts Rejected 1 | . . . . . 1 . . . . . . . . . . . . . . . Data Loss (minor) 7 | . . . . . 1 . . . . . 1 3 1 . . . . . . 1 Targeting Errors 3 | . . . . . 2 . . . . . 1 . . . . . . . . . Overload Shots . | . . . . . . . . . . . . . . . . . . . . . Overflow Damage 942 | . . . . . . 299 . 20 . 10 . 321 . 153 34 63 24 18 . . Projectiles 39 | . . . . . . 9 . 20 . 10 . . . . . . . . . . Explosions 21 | . . . . . . . . . . . . . . . . 3 . 18 . . Melee 882 | . . . . . . 290 . . . . . 321 . 153 34 60 24 . . . Knockbacks 3 | . . . . . . 3 . . . . . . . . . . . . . . Impact 3 | . . . . . . 3 . . . . . . . . . . . . . . Kinetic . | . . . . . . . . . . . . . . . . . . . . . Secondary . | . . . . . . . . . . . . . . . . . . . . . Self-Inflicted Damage 324 | . 105 . . . . . . . . . 193 . . . . . . 26 . . Shots 5 | . 2 . . . . . . . . . 2 . . . . . . 1 . . Rammed . | . . . . . . . . . . . . . . . . . . . . . Targets Rammed . | . . . . . . . . . . . . . . . . . . . . . Kicked . | . . . . . . . . . . . . . . . . . . . . . Crushed . | . . . . . . . . . . . . . . . . . . . . . Highest Temperature 262 | . 19 86 168 150 178 222 240 156 . 234 231 251 262 . . 4 . 9 . . Average Temperature 66 | . 11 30 85 55 12 92 128 47 . 98 103 122 140 . . 4 . 4 . . Received Heat Transfer 560 | . 78 . . 6 63 . 45 . . 30 81 . 18 36 20 99 . 48 . 36 Siege Activations . | . . . . . . . . . . . . . . . . . . . . . Robots Corrupted . | . . . . . . . . . . . . . . . . . . . . . Combat Hostiles . | . . . . . . . . . . . . . . . . . . . . . Parts Fried 9 | . . . . . . 9 . . . . . . . . . . . . . . Impact Corruptions 12 | . . . . . . 12 . . . . . . . . . . . . . . Robots Melted 1 | . . . . . . . 1 . . . . . . . . . . . . . Combat Hostiles 1 | . . . . . . . 1 . . . . . . . . . . . . . Parts Melted 10 | . . 1 . . . 4 1 . . 2 2 . . . . . . . . . Heat Transferred 4762 | . . 100 . 100 222 1120 720 400 . 1520 480 . . . . . . . . 100 Parts Sabotaged . | . . . . . . . . . . . . . . . . . . . . . Parts Stolen . | . . . . . . . . . . . . . . . . . . . . . Parts Stripped . | . . . . . . . . . . . . . . . . . . . . . Power Chain Reactions 1 | . 1 . . . . . . . . . . . . . . . . . . . Missiles Intercepted . | . . . . . . . . . . . . . . . . . . . . . Alert | -11 -10 -10 -10 -9 -8 -7 -7 -7 -7 -6 -6 -6 -6 -6 -6 -5 -5 -5 -5 -4 ------- Run | Scr Mat Min Exi Min Mat Fac Low Low Zio Pro Fac Was Fac Low Low Fac Upp Upp Zhi Pro Peak Influence 1892 | . 105 179 . 32 67 427 . . . . 343 120 1534 . . 1892 . . . . Initial 924 | . . 31 . . 8 . . . . . . 120 . . . 924 . . . . Average 314 | . 56 50 . 11 34 198 . . . . 92 60 903 . . 1444 . . . . Maximum Alert Level 5 | . . . . . . 2 . . . . 1 . 4 . . 5 . . . . Low Security (%) 74 | 100 100 100 . 100 100 69 . . . . 94 100 23 . . . . . . . Level 1 2 | . . . . . . 5 . . . . 5 . . . . . . . . . Level 2 5 | . . . . . . 24 . . . . . . . . . . . . . . Level 3 6 | . . . . . . . . . . . . . 34 . . 30 . . . . Level 4 6 | . . . . . . . . . . . . . 41 . . 23 . . . . Level 5 4 | . . . . . . . . . . . . . . . . 45 . . . . High Security . | . . . . . . . . . . . . . . . . . . . . . Max Security . | . . . . . . . . . . . . . . . . . . . . . Squads Dispatched 39 | . 5 . . . . 7 . . . . 9 . 10 . . 8 . . . . Investigation 15 | . 2 . . . . 3 . . . . 4 . 3 . . 3 . . . . Extermination 7 | . . . . . . 3 . . . . 3 . 1 . . . . . . . Reinforcement 9 | . 3 . . . . 1 . . . . 2 . . . . 3 . . . . Assault 4 | . . . . . . . . . . . . . 3 . . 1 . . . . Garrison 4 | . . . . . . . . . . . . . 3 . . 1 . . . . Intercept . | . . . . . . . . . . . . . . . . . . . . . Construction Impeded 2 | . . . . . . . . . . . . . . . . 2 . . . . Haulers Reinforced 2 | . . . . . . 1 . . . . . . . . . 1 . . . . Stealth | -11 -10 -10 -10 -9 -8 -7 -7 -7 -7 -6 -6 -6 -6 -6 -6 -5 -5 -5 -5 -4 --------- Run | Scr Mat Min Exi Min Mat Fac Low Low Zio Pro Fac Was Fac Low Low Fac Upp Upp Zhi Pro Distress Signals 4 | . 1 . . . . 1 . . . . 2 . . . . . . . . . Communications Jammed . | . . . . . . . . . . . . . . . . . . . . . Distress Signals . | . . . . . . . . . . . . . . . . . . . . . Times Spotted 166 | . 12 6 . 2 7 8 5 3 . 15 35 . 8 10 5 16 6 18 . 10 Peak Tracking Total 9 | . 7 3 . 2 4 3 4 3 . 7 7 . 5 5 4 6 4 9 . 4 Tactical Retreats 22 | . 2 . . 1 1 2 . 1 . 4 7 . . . . 1 . 1 . 2 Traps | -11 -10 -10 -10 -9 -8 -7 -7 -7 -7 -6 -6 -6 -6 -6 -6 -5 -5 -5 -5 -4 ------- Run | Scr Mat Min Exi Min Mat Fac Low Low Zio Pro Fac Was Fac Low Low Fac Upp Upp Zhi Pro Traps Triggered 11 | . 1 . . . . 2 . . . . 7 . 1 . . . . . . . Indirectly . | . . . . . . . . . . . . . . . . . . . . . Trap Hack Attempts . | . . . . . . . . . . . . . . . . . . . . . Triggered . | . . . . . . . . . . . . . . . . . . . . . Disarmed . | . . . . . . . . . . . . . . . . . . . . . Reprogrammed . | . . . . . . . . . . . . . . . . . . . . . Reused . | . . . . . . . . . . . . . . . . . . . . . Traps Extracted . | . . . . . . . . . . . . . . . . . . . . . Installed . | . . . . . . . . . . . . . . . . . . . . . Triggered 2 | . . . . . . . . 2 . . . . . . . . . . . . Machines | -11 -10 -10 -10 -9 -8 -7 -7 -7 -7 -6 -6 -6 -6 -6 -6 -5 -5 -5 -5 -4 ---------- Run | Scr Mat Min Exi Min Mat Fac Low Low Zio Pro Fac Was Fac Low Low Fac Upp Upp Zhi Pro Machines Disabled 25 | . 3 . . . 1 . . . . . 7 . 4 1 2 7 . . . . Max in Single Turn 6 | . 2 . . . 1 . . . . . 6 . . . . . . . . . Garrison Access 5 | . . . . . . 3 . . . . . . 1 . . 1 . . . . Machines Sabotaged . | . . . . . . . . . . . . . . . . . . . . . Garrisons Compromised . | . . . . . . . . . . . . . . . . . . . . . Overloaded Fab Kills . | . . . . . . . . . . . . . . . . . . . . . Fab Network Shutdowns 1 | . . . . . . 1 . . . . . . . . . . . . . . Hacking | -11 -10 -10 -10 -9 -8 -7 -7 -7 -7 -6 -6 -6 -6 -6 -6 -5 -5 -5 -5 -4 --------- Run | Scr Mat Min Exi Min Mat Fac Low Low Zio Pro Fac Was Fac Low Low Fac Upp Upp Zhi Pro Machines Accessed 60 | . 1 . . . 4 21 2 . . . 10 . 11 . . 5 . 1 5 . Terminals 31 | . 1 . . . 3 12 . . . . 5 . 6 . . 4 . . . . Fabricators 8 | . . . . . . 4 . . . . 1 . 2 . . 1 . . . . Repair Stations 3 | . . . . . . . . . . . 2 . 1 . . . . . . . Recycling Units 2 | . . . . . 1 1 . . . . . . . . . . . . . . Scanalyzers 3 | . . . . . . 1 . . . . 1 . 1 . . . . . . . Garrison Access 5 | . . . . . . 3 . . . . 1 . 1 . . . . . . . Total Hacks 188 | . 3 . . . 7 60 2 . . . 28 . 51 . . 21 . 1 15 . Successful 139 | . 2 . . . 4 55 2 . . . 13 . 31 . . 16 . 1 15 . Failed 48 | . 1 . . . 3 4 . . . . 15 . 20 . . 5 . . . . Catastrophic 11 | . 1 . . . 1 . . . . . 3 . 6 . . . . . . . Database Lockouts 1 | . . . . . . 1 . . . . . . . . . . . . . . Manual 71 | . 3 . 1 . 7 17 . . . . 8 . 22 . . 11 . 2 . . Terminals 109 | . 3 . . . 6 40 . . . . 15 . 28 . . 17 . . . . Fabricators 35 | . . . . . . 13 . . . . 3 . 15 . . 4 . . . . Repair Stations 7 | . . . . . . . . . . . 4 . 3 . . . . . . . Recycling Units 3 | . . . . . 1 2 . . . . . . . . . . . . . . Scanalyzers 10 | . . . . . . 2 . . . . 4 . 4 . . . . . . . Garrison Access 6 | . . . . . . 3 . . . . 2 . 1 . . . . . . . Terminal Hacks 69 | . 1 . . . 1 28 2 . . . 3 . 7 . . 11 . 1 15 . Record 7 | . . . . . . 1 1 . . . 1 . . . . 1 . . 3 . Part Schematic 11 | . . . . . . 7 . . . . . . . . . . . . 4 . Robot Schematic 3 | . . . . . . 2 . . . . . . . . . 1 . . . . Robot Analysis 15 | . . . . . 1 4 . . . . . . . . . 6 . . 4 . Prototype ID Bank 5 | . . . . . . . . . . . . . 1 . . . . . 4 . Open Door 2 | . . . . . . . 1 . . . . . . . . . . 1 . . Level Access Points 3 | . . . . . . 1 . . . . . . 1 . . 1 . . . . Branch Access Points 2 | . . . . . . 1 . . . . . . . . . 1 . . . . Machine Index 1 | . . . . . . 1 . . . . . . . . . . . . . . Terminal Index 2 | . . . . . . 1 . . . . . . 1 . . . . . . . Fabricator Index 2 | . . . . . . . . . . . 1 . 1 . . . . . . . Scanalyzer Index 1 | . 1 . . . . . . . . . . . . . . . . . . . Alert Level 4 | . . . . . . 2 . . . . . . 1 . . 1 . . . . Unreport Threat 1 | . . . . . . 1 . . . . . . . . . . . . . . Locate Traps 2 | . . . . . . 2 . . . . . . . . . . . . . . Dispatch Records 2 | . . . . . . . . . . . 1 . 1 . . . . . . . Recall Investigation 2 | . . . . . . 2 . . . . . . . . . . . . . . Recall Extermination 1 | . . . . . . 1 . . . . . . . . . . . . . . Registered Components 2 | . . . . . . 1 . . . . . . 1 . . . . . . . Zone Layout 1 | . . . . . . 1 . . . . . . . . . . . . . . Fabricator Hacks 26 | . . . . . . 11 . . . . 1 . 11 . . 3 . . . . Network Status 3 | . . . . . . 3 . . . . . . . . . . . . . . Load Schematic 9 | . . . . . . 2 . . . . 1 . 4 . . 2 . . . . Build 14 | . . . . . . 6 . . . . . . 7 . . 1 . . . . Repair Station Hacks 5 | . . . . . . . . . . . 3 . 2 . . . . . . . Scan Component 3 | . . . . . . . . . . . 2 . 1 . . . . . . . Repair 2 | . . . . . . . . . . . 1 . 1 . . . . . . . Recycling Unit Hacks 2 | . . . . . . 2 . . . . . . . . . . . . . . Report Inventory 1 | . . . . . . 1 . . . . . . . . . . . . . . Retrieve Components 1 | . . . . . . 1 . . . . . . . . . . . . . . Scanalyzer 9 | . . . . . . 2 . . . . 4 . 3 . . . . . . . Insert Component 4 | . . . . . . 1 . . . . 2 . 1 . . . . . . . Analyze 5 | . . . . . . 1 . . . . 2 . 2 . . . . . . . Garrison Access Hacks 4 | . . . . . . 3 . . . . . . 1 . . . . . . . Seal Access 4 | . . . . . . 3 . . . . . . 1 . . . . . . . Unauthorized Hacks 24 | . 1 . . . 3 9 . . . . 2 . 7 . . 2 . . . . Terminals 18 | . 1 . . . 2 7 . . . . 2 . 5 . . 1 . . . . Track 1 | . 1 . . . . . . . . . . . . . . . . . . . Assimilate 1 | . . . . . 1 . . . . . . . . . . . . . . . Botnet 15 | . . . . . 1 7 . . . . 2 . 4 . . 1 . . . . Operators 1 | . . . . . . . . . . . . . 1 . . . . . . . Fabricators 5 | . . . . . . 2 . . . . . . 2 . . 1 . . . . Prioritize 3 | . . . . . . 1 . . . . . . 1 . . 1 . . . . Siphon 2 | . . . . . . 1 . . . . . . 1 . . . . . . . Repair Stations . | . . . . . . . . . . . . . . . . . . . . . Recycling Units 1 | . . . . . 1 . . . . . . . . . . . . . . . Recyclers 1 | . . . . . 1 . . . . . . . . . . . . . . . Scanalyzers . | . . . . . . . . . . . . . . . . . . . . . Garrison Access . | . . . . . . . . . . . . . . . . . . . . . Data Cores Recovered . | . . . . . . . . . . . . . . . . . . . . . Used . | . . . . . . . . . . . . . . . . . . . . . Hacking Detections 43 | . 1 . . . 2 17 . . . . 9 . 9 . . 5 . . . . Full Trace Events 15 | . 1 . . . 1 3 . . . . 4 . 3 . . 3 . . . . Feedback Events 2 | . . . . . . . . . . . . . . . . 2 . . . . Hackware Fried 2 | . . . . . . . . . . . . . . . . 2 . . . . Feedback Blocked . | . . . . . . . . . . . . . . . . . . . . . Robot Schematics Acquired 3 | . . . . . . 2 . . . . . . . . . 1 . . . . Robots Built 2 | . . . . . . . . . . . . . . . . 2 . . . . Matter 219 | . . . . . . . . . . . . . . . . 219 . . . . Time 58 | . . . . . . . . . . . . . . . . 58 . . . . Total Robot Build Rating 6 | . . . . . . . . . . . . . . . . 6 . . . . Part Schematics Acquired 14 | . . . . . . 7 . . . . 2 . 1 . . . . . 4 . Parts Built 10 | . . . . . . 4 . . . . . . 6 . . . . . . . Matter 1436 | . . . . . . 584 . . . . . . 852 . . . . . . . Time 426 | . . . . . . 144 . . . . . . 282 . . . . . . . Total Part Build Rating 42 | . . . . . . 12 . . . . . . 30 . . . . . . . Parts Repaired 2 | . . . . . . . . . . . 1 . 1 . . . . . . . Time 112 | . . . . . . . . . . . 50 . 62 . . . . . . . Parts Recycled . | . . . . . . . . . . . . . . . . . . . . . Recycled Matter . | . . . . . . . . . . . . . . . . . . . . . Retrieved Matter . | . . . . . . . . . . . . . . . . . . . . . Retrieved Components 3 | . . . . . . 3 . . . . . . . . . . . . . . Parts Scanalyzed 4 | . . . . . . 1 . . . . 2 . 1 . . . . . . . Part Schematics Acquired 4 | . . . . . . 1 . . . . 2 . 1 . . . . . . . Parts Damaged . | . . . . . . . . . . . . . . . . . . . . . Bothacking | -11 -10 -10 -10 -9 -8 -7 -7 -7 -7 -6 -6 -6 -6 -6 -6 -5 -5 -5 -5 -4 ------------ Run | Scr Mat Min Exi Min Mat Fac Low Low Zio Pro Fac Was Fac Low Low Fac Upp Upp Zhi Pro Used RIF Installer . | . . . . . . . . . . . . . . . . . . . . . Robots Hacked . | . . . . . . . . . . . . . . . . . . . . . Non-combat . | . . . . . . . . . . . . . . . . . . . . . Combat . | . . . . . . . . . . . . . . . . . . . . . Robot Hacks Applied . | . . . . . . . . . . . . . . . . . . . . . Relay Couplers Released 3 | . . . . . . . . . . . . . . . . 3 . . . . Machine Destruction 3 | . . . . . . . . . . . . . . . . 3 . . . . Robots Rewired . | . . . . . . . . . . . . . . . . . . . . . Allies Hacked . | . . . . . . . . . . . . . . . . . . . . . Hacks Repelled . | . . . . . . . . . . . . . . . . . . . . . Allies | -11 -10 -10 -10 -9 -8 -7 -7 -7 -7 -6 -6 -6 -6 -6 -6 -5 -5 -5 -5 -4 -------- Run | Scr Mat Min Exi Min Mat Fac Low Low Zio Pro Fac Was Fac Low Low Fac Upp Upp Zhi Pro Total Allies 34 | . . 4 . . . . 3 . . . . 20 . . . 5 . 2 . . Largest Group 20 | . . 4 2 2 . . 3 1 . . . 20 20 11 11 13 11 2 . . Highest-Rated Group 806 | . . 71 32 32 . . 93 31 . . . 806 806 508 502 508 444 188 . . Highest-Rated Ally 94 | . . 31 16 16 . . 31 31 . . . 50 50 50 50 50 46 94 . . Total Orders 2 | . . . . . . . . . . . . . . . . . 1 1 . . EXPLORE 2 | . . . . . . . . . . . . . . . . . 1 1 . . Ally Attacks 299 | . . 17 . 7 . . 22 . . . . . 90 49 12 86 11 5 . . Total Damage 11955 | . . 220 . 62 . . 395 . . . . . 3916 2207 607 4089 347 112 . . Kills 100 | . . 5 . 1 . . 2 . . . . . 44 15 5 21 7 . . . Allies Corrupted 2 | . . . . . . . 1 . . . . . 1 . . . . . . . Allies Melted . | . . . . . . . . . . . . . . . . . . . . . Intel | -11 -10 -10 -10 -9 -8 -7 -7 -7 -7 -6 -6 -6 -6 -6 -6 -5 -5 -5 -5 -4 ------- Run | Scr Mat Min Exi Min Mat Fac Low Low Zio Pro Fac Was Fac Low Low Fac Upp Upp Zhi Pro Robot Analysis Total 15 | . . . . . 1 4 . . . . . . . . . 6 . . 4 . Derelict Logs Recovered 15 | . . 3 . 3 . . 1 2 . 2 . . . 1 1 . 1 . . 1 Drone Launches 2 | . . . . . . . . . . . . . . . . . 1 1 . . Drone Recoveries 1 | . . . . . . . . . . . . . . . . . . 1 . . Exploration | -11 -10 -10 -10 -9 -8 -7 -7 -7 -7 -6 -6 -6 -6 -6 -6 -5 -5 -5 -5 -4 ------------- Run | Scr Mat Min Exi Min Mat Fac Low Low Zio Pro Fac Was Fac Low Low Fac Upp Upp Zhi Pro Turns Passed 10812 | 13 486 533 163 243 445 1603 392 230 75 452 1862 787 788 381 92 708 375 325 290 569 Spaces Moved 11636 | 24 305 706 229 306 219 2347 587 373 169 722 1823 240 626 568 152 759 408 420 161 492 Core 3629 | 24 305 439 . . . . . . . 380 1275 240 121 . . 131 . 61 161 492 Treads . | . . . . . . . . . . . . . . . . . . . . . Legs . | . . . . . . . . . . . . . . . . . . . . . Wheels . | . . . . . . . . . . . . . . . . . . . . . Hover . | . . . . . . . . . . . . . . . . . . . . . Flight 8007 | . . 267 229 306 219 2347 587 373 169 342 548 . 505 568 152 628 408 359 . . Fastest Speed 32 | 50 50 37 37 37 37 37 37 37 40 37 32 50 37 37 37 37 40 40 50 50 Average Speed 46 | 50 50 45 37 37 37 37 40 42 40 48 53 91 49 37 40 58 40 41 50 69 Slowest Speed 280 | 50 50 50 37 37 40 120 120 120 40 280 200 250 117 120 117 150 40 50 50 200 Overloaded Moves 9 | . . . . . . . . . . . 9 . . . . . . . . . Propulsion Burnouts . | . . . . . . . . . . . . . . . . . . . . . Robots Hopped 49 | . . 3 . 7 4 31 . . . . 4 . . . . . . . . . Cave-ins Triggered 3 | . . . . . 3 . . . . . . . . . . . . . . . Teleports 1 | . . . . . . . . . . . . . . . . . . . . 1 Exploration Rate (%) 51 | 2 47 99 66 64 19 58 67 59 13 80 46 95 22 73 21 18 73 55 62 36 Regions Visited 20 Branch Regions 13 Pre-discovered Areas 6 | . . 1 . 2 . . . 1 . . . . . . . . 1 . 1 . Known Exits Taken 8 | . . . 1 . 1 1 . 1 . 1 . . 1 . 1 1 . . . . Unknown Exits Taken 10 | 1 1 1 . 1 . . 1 . 1 . . . . 1 . . 1 1 1 . Scrap Searched 20 | . . 1 . 3 . . 3 2 . 2 . . . 3 . . 2 3 . 1 Spaces Dug 68 | . . 5 . 4 22 7 . . . . 5 . 1 2 1 15 . 4 . 2 Terrain Destroyed 238 | . 19 8 2 10 25 7 . . . 1 54 . 1 2 1 25 . 81 . 2 Melee 34 | . . . . . . 7 . . . . 4 . 1 2 1 15 . 4 . . Projectile 51 | . . 8 2 10 25 . . . . 1 3 . . . . . . . . 2 AOE 153 | . 19 . . . . . . . . . 47 . . . . 10 . 77 . . Terrain Rammed . | . . . . . . . . . . . . . . . . . . . . . Walls Destroyed . | . . . . . . . . . . . . . . . . . . . . . Machines Disabled . | . . . . . . . . . . . . . . . . . . . . . Actions | -11 -10 -10 -10 -9 -8 -7 -7 -7 -7 -6 -6 -6 -6 -6 -6 -5 -5 -5 -5 -4 --------- Run | Scr Mat Min Exi Min Mat Fac Low Low Zio Pro Fac Was Fac Low Low Fac Upp Upp Zhi Pro Total 16493 | 24 622 880 305 389 477 3001 732 435 175 808 2622 797 1095 722 178 985 615 554 368 709 Wait 4232 | . 299 155 68 78 212 572 123 40 7 46 618 539 430 145 20 183 203 102 199 193 Move 11522 | 23 304 699 228 292 210 2286 586 372 168 721 1815 239 625 567 151 758 407 419 160 492 Hop 46 | . . 3 . 6 4 29 . . . . 4 . . . . . . . . . Pick Up 36 | . 3 3 . . 1 9 1 . . . 3 2 4 1 . 2 . 4 1 2 Fast Attach 106 | 1 2 4 3 . 6 18 3 1 . 1 28 3 14 . 2 7 2 3 5 3 Attach 64 | . . . . . 2 12 3 4 . 10 15 2 3 1 . 2 . 4 . 6 Detach 49 | . . . 1 . 1 8 2 4 . 9 17 1 2 . . . . . 1 3 Swap 13 | . . 1 . . 1 1 1 1 . . . . 1 . 1 4 . 2 . . Drop 84 | . . 3 3 . 3 20 4 2 . 1 11 4 11 . 2 7 1 8 2 2 Fire 231 | . 14 12 2 13 37 14 9 11 . 20 85 . . . . 1 . 6 . 7 Melee 76 | . . . . . . 14 . . . . 11 7 5 8 2 21 2 6 . . Ram . | . . . . . . . . . . . . . . . . . . . . . Kick . | . . . . . . . . . . . . . . . . . . . . . Crush . | . . . . . . . . . . . . . . . . . . . . . Escape Stasis 33 | . . . . . . 18 . . . . 15 . . . . . . . . . Rewire 1 | . . . . . . . . . . . . . . . . . . . . 1 Trap . | . . . . . . . . . . . . . . . . . . . . . Miscellaneous . | . . . . . . . . . . . . . . . . . . . . . Route ------- -11/Scrapyard -10/Materials -10/Mines (discovered 3 exits: [*Mat x2] / *Exi) -10/Exiles (discovered 2 exits: *Min x2) -9/Mines -8/Materials (discovered 3 exits: *Fac x2 / Sto) -7/Factory (discovered 6 exits: *Fac x4 / *Low x2) -7/Lower Caves -7/Lower Caves (discovered 2 exits: *Fac / *Zio) -7/Zion -6/Proximity Caves -6/Factory (discovered 3 exits: Fac / *Low x2) -6/Waste -6/Factory (discovered 5 exits: *Fac x4 / *Low) -6/Lower Caves -6/Lower Caves -5/Factory (discovered 6 exits: Fac x4 / *Upp x2) -5/Upper Caves -5/Upper Caves -5/Zhirov -4/Proximity Caves History --------- Turn | Location | Event 3 | -11/Scrapyard | Discovered new exit (range 15) 14 | -11/Scrapyard | Entered Materials 311 | -10/Materials | Build established: Mutant 446 | -10/Materials | Discovered new exit (range 10) 474 | -10/Materials | Core integrity fell below 50% 500 | -10/Materials | Entered Mines 503 | -10/Mines | Received a Mining Laser from a helpful Derelict 572 | -10/Mines | Discovered new exit (range 13) 609 | -10/Mines | Learned 2 Materials zone layouts 625 | -10/Mines | Discovered new exit (range 8) 652 | -10/Mines | Assisted by bots powering up and referring to "LRC-V3" 683 | -10/Mines | Found a damaged Exp. Sensor Array with a note attached 684 | -10/Mines | Found Prototype Device 689 | -10/Mines | Received a Rocket Launcher from a helpful Derelict 875 | -10/Mines | Learned location of Mines (-9) 917 | -10/Mines | Joined a pair of Derelicts in attacking an 0b10 outpost 935 | -10/Mines | Deemed a non-threat by the Exiles lab entrance 936 | -10/Mines | Discovered new exit (range 5) 1033 | -10/Mines | Entered Exiles 1033 | -10/Exiles | Accompanied by 2 allies 1034 | -10/Exiles | Identified exit to Mines 1043 | -10/Exiles | Met 8R-AWN 1049 | -10/Exiles | Met EX-HEX 1061 | -10/Exiles | Met EX-BIN 1065 | -10/Exiles | Aligned with FarCom system 1065 | -10/Exiles | Given EX-Vault access code 1074 | -10/Exiles | Opened EX-Vault 1076 | -10/Exiles | Found Prototype Energy Cannon 1076 | -10/Exiles | Identified Gui. Plasma Cannon 1079 | -10/Exiles | Found Prototype Special Weapon 1079 | -10/Exiles | Identified Field Lobotomy Kit 1097 | -10/Exiles | Warned to stay clear of 0b10 Research branches 1106 | -10/Exiles | Met EX-DEC 1196 | -10/Exiles | Left Exiles lab with Gui. Plasma Cannon 1196 | -10/Exiles | Entered Mines 1196 | -9/Mines | Accompanied by 2 allies 1239 | -9/Mines | Learned Materials terminal intel 1252 | -9/Mines | Assembled infested the area 1252 | -9/Mines | Learned location of 2 exits from Materials 1257 | -9/Mines | Assisted by a Guerilla fighting off Assembled 1309 | -9/Mines | A weapon hastily lodged in a ceiling crevice suddenly fell to the ground 1331 | -9/Mines | Learned location of Storage (-8) 1417 | -9/Mines | Discovered new exit (range 10) 1439 | -9/Mines | Entered Materials 1439 | -8/Materials | Evolved 4 slots: Utility x4 1440 | -8/Materials | Identified exit to Storage 1440 | -8/Materials | Identified exit to Factory 1442 | -8/Materials | Loaded intel: 12 terminal locations 1578 | -8/Materials | Crushed by falling debris 1582 | -8/Materials | Crushed by falling debris 1615 | -8/Materials | Crushed by falling debris 1799 | -8/Materials | System corruption reached 10% 1831 | -8/Materials | Lost 3 parts (1p2w) 1860 | -8/Materials | Discovered exit to Factory (range 9) 1884 | -8/Materials | Entered Factory 1884 | -7/Factory | Evolved 2 slots: Utility x2 2043 | -7/Factory | Fabricated Hacking Suite (x1) 2081 | -7/Factory | Fabricated Hacking Suite (x1) 2170 | -7/Factory | Fabricated Hacking Suite (x1) 2208 | -7/Factory | Fabricated Hacking Suite (x1) 2287 | -7/Factory | Local fabrication network quarantined 2343 | -7/Factory | Build established: Hacker-Mutant 2511 | -7/Factory | Identified exit to Factory 2593 | -7/Factory | Identified exit to Lower Caves 2820 | -7/Factory | Central database locked down 3487 | -7/Factory | Entered Lower Caves 3536 | -7/Lower Caves | Attracted the attention of an 0b10 checkpoint 3620 | -7/Lower Caves | Learned Factory emergency access door positions 3641 | -7/Lower Caves | A Commander dispatched an escort 3656 | -7/Lower Caves | Learned Extension garrison access intel 3669 | -7/Lower Caves | Encountered a Warlord checkpoint 3751 | -7/Lower Caves | Discovered new exit (range 5) 3760 | -7/Lower Caves | Ambushed by wild Derelicts 3879 | -7/Lower Caves | Entered another Lower Caves area 3879 | -7/Lower Caves | Accompanied by 1 ally 3880 | -7/Lower Caves | Commander's escort returned to base 3946 | -7/Lower Caves | Discovered exit to Factory (range 6) 3964 | -7/Lower Caves | Encountered a Warlord checkpoint 3971 | -7/Lower Caves | Learned location of Extension (-4) 3981 | -7/Lower Caves | Identified exit to Zion 4109 | -7/Lower Caves | Entered Zion 4116 | -7/Zion | Given A8's code to call for help 4155 | -7/Zion | Discovered new exit (range 10) 4184 | -7/Zion | Entered Proximity Caves 4203 | -6/Proximity Caves | Learned location of 1 exit from Factory 4230 | -6/Proximity Caves | Learned location of 1 exit from Factory 4392 | -6/Proximity Caves | Attracted the attention of an 0b10 base 4450 | -6/Proximity Caves | Lost 6 parts (1p2n3u) 4484 | -6/Proximity Caves | Spotted B-75 Beast 4499 | -6/Proximity Caves | Core integrity fell below 50% 4629 | -6/Proximity Caves | Discovered exit to Factory (range 8) 4636 | -6/Proximity Caves | Entered Factory 4636 | -6/Factory | Evolved 2 slots: Utility x2 4637 | -6/Factory | Identified exit to Factory 4637 | -6/Factory | Identified exit to Lower Caves 4865 | -6/Factory | Build established: Mutant 5955 | -6/Factory | Repaired Imp. Maneuvering Thrusters 6068 | -6/Factory | Lost 6 parts (1p2n2u1w) 6236 | -6/Factory | Core integrity fell below 50% 6438 | -6/Factory | Discovered exit to Lower Caves (range 3) 6466 | -6/Factory | Core integrity fell below 20% 6498 | -6/Factory | Sucked down chute 6498 | -6/Factory | Entered Waste 6499 | -6/Waste | Joined by Warlord forces that had cleared the area 7247 | -6/Waste | Discovered new exit (range 13) 7260 | -6/Waste | Identified exit to Factory 7285 | -6/Waste | Entered Factory 7285 | -6/Factory | Accompanied by 20 allies 7414 | -6/Factory | Discovered exit to Factory (range 19) 7465 | -6/Factory | Garrison activated, responded to threat 7635 | -6/Factory | First assault squad dispatched 7702 | -6/Factory | Discovered exit to Lower Caves (range 9) 7716 | -6/Factory | Repaired Micro-nuke Launcher? 7756 | -6/Factory | Fabricated Imp. Hacking Suite (x1) 7805 | -6/Factory | Fabricated Imp. Hacking Suite (x1) 7855 | -6/Factory | Fabricated Imp. Hacking Suite (x1) 7904 | -6/Factory | Fabricated Imp. Hacking Suite (x1) 7953 | -6/Factory | Fabricated Imp. Hacking Suite (x1) 8002 | -6/Factory | Fabricated Adv. Melee Analysis Suite (x1) 8073 | -6/Factory | Entered Lower Caves 8073 | -6/Lower Caves | Accompanied by 11 allies 8117 | -6/Lower Caves | Encountered a Warlord checkpoint 8168 | -6/Lower Caves | Attracted the attention of an 0b10 outpost 8276 | -6/Lower Caves | Attracted the attention of an 0b10 checkpoint 8301 | -6/Lower Caves | Build established: Wizard-Mutant 8303 | -6/Lower Caves | Learned 8 Factory zone layouts 8339 | -6/Lower Caves | Discovered new exit (range 10) 8454 | -6/Lower Caves | Entered another Lower Caves area 8454 | -6/Lower Caves | Accompanied by 11 allies 8469 | -6/Lower Caves | Learned location of 1 exit from Factory 8469 | -6/Lower Caves | Discovered exit to Factory (range 16) 8482 | -6/Lower Caves | Attacked by a delusional Derelict stockpiling parts 8546 | -6/Lower Caves | Entered Factory 8546 | -5/Factory | Accompanied by 10 allies 8546 | -5/Factory | Evolved 2 slots: Utility x2 8547 | -5/Factory | Identified exit to Factory 8548 | -5/Factory | Identified exit to Upper Caves 8730 | -5/Factory | System Shield fried by hacking feedback 8808 | -5/Factory | Garrison activated, responded to threat 8843 | -5/Factory | Lost 3 parts (1n1u1w) 9062 | -5/Factory | Imp. Hacking Suite fried by hacking feedback 9152 | -5/Factory | Fabricated H-55 Commando? 9254 | -5/Factory | Entered Upper Caves 9254 | -5/Upper Caves | Accompanied by 11 allies 9518 | -5/Upper Caves | Discovered new exit (range 16) 9528 | -5/Upper Caves | Learned location of Armory (-4) 9629 | -5/Upper Caves | Entered another Upper Caves area 9630 | -5/Upper Caves | Encountered a Warlord checkpoint 9736 | -5/Upper Caves | Acquired the password to a Derelict Tinkerer's latest research 9740 | -5/Upper Caves | Found Prototype Special Weapon 9740 | -5/Upper Caves | Identified Molecular Deconstructor 9749 | -5/Upper Caves | Enhanced Grunt warped into view, answering call for help 9764 | -5/Upper Caves | Enhanced Grunt warped into view, answering call for help 9857 | -5/Upper Caves | Caught by Unaware searching for contraband prototypes 9857 | -5/Upper Caves | Caught by Unaware searching for contraband prototypes 9895 | -5/Upper Caves | Lost 4 parts (1n2u1w) 9950 | -5/Upper Caves | Discovered new exit (range 8) 9951 | -5/Upper Caves | Core integrity fell below 50% 9954 | -5/Upper Caves | Entered Zhirov 9954 | -5/Zhirov | Discovered new exit (range 3) 9964 | -5/Zhirov | Met Zhirov 9970 | -5/Zhirov | Lost 3 parts (1n1u1w) 9976 | -5/Zhirov | Found Alien Artifact 10008 | -5/Zhirov | Found Alien Artifact 10008 | -5/Zhirov | Identified Integrated Dissipator 10008 | -5/Zhirov | Installed Integrated Dissipator, increased core heat dissipation (+20) 10022 | -5/Zhirov | Learned location of Quarantine (-3) 10031 | -5/Zhirov | Zhirov requested help retrieving the SGEMP Prototype 10143 | -5/Zhirov | Build established: Hacker-Mutant 10244 | -5/Zhirov | Entered Proximity Caves 10286 | -4/Proximity Caves | Spotted B-86 Titan 10483 | -4/Proximity Caves | Core integrity fell below 20% 10515 | -4/Proximity Caves | Identified Transdimensional Reconstructor 10515 | -4/Proximity Caves | Warped through subspace 10762 | -4/Proximity Caves | Learned Research emergency access door positions 10813 | -4/Proximity Caves | Destroyed by S-27 Virus with Autogun Last Messages --------------- 10376_ Knocked back. 10378_ B-86 Titan activates siege mode. 10379_ Entropy package works its way towards B-86 Titan core. 10380_ System corrupted: Component data lost. 10387_ Slug penetrates Wall. 10418_ Penetrated by Slug. 10422_ Molecular Deconstructor destroyed. 10437_ F71WJKGQB4OQ BSZ3RP 2ZFL 10482_ Knocked back. 10485_ Slug penetrates Wall. 10515_ Identified Transdimensional Reconstructor. 10515_ Warped through subspace. 10558_ JIGFTGZ ZUALYYMN212|BLV 10673_ Acquired Neutron Cannon. 10678_ Acquired Fission Core. 10680_ Acquired 58 matter. 10762_ Acquired derelict log, extracted data. Data stored: Research emergency access points. 10811_ S-27 Virus suffers critical hit. 10811_ Destroyed Autogun. Map ----- +----------------------------------------------------+ | ?????????????????????????????????????????????????? | | ?????????????????????????????????????????????????? | | ?????????????????????????????????????????????????? | | ?????????????????????????????????????????????????? | | ?????????????????????????????????????????????????? | | ????????######???????????????????????????????????? | | ????????? ##??????######?????????????????????? | | ##???????? #?????# ##??###??#####????????? | | ##????????? ###??# #### #### #????????? | | ##?????????? ##?# #????????? | | #????????????# ##### #????????? | | #?????????#### #????????? | | #?????##### ##???????? | | ## ####?## ####### #???????? | | ?# ### #### ####### #???????? | | ?# ##??# #???????? | | # ## ##??# #???????? | | ## ##??# ####### #???????? | | ? ##?????# ##### ####???????? | | #??????# s##???## #??????????? | | #### ##??????# ss#?????# #??????????? | | ## #??## #????????# #?##### #??????????? | | ?## ???####???????## #?# ##?????????? | | ??## ??????????????# #?# ###???????? | | ???# ??????????????## ##?# #???????? | | ???# #???????????????##@#??# # #???????? | | ???## ##????????????????###??# ## #???????? | | ????##???????????????????????# ??### ##???????? | | ?????????????????????????????# ????### ##????????? | | ????????????????????????????? ???????###?????????? | | ???????????????????????????? ????????????????????? | | ?????????????????????????????????????????????????? | | ?????????????????????????????????????????????????? | | ?????????????????????????????????????????????????? | | ?????????????????????????????????????????????????? | | ?????????????????????????????????????????????????? | | ?????????????????????????????????????????????????? | | ?????????????????????????????????????????????????? | | ?????????????????????????????????????????????????? | | ?????????????????????????????????????????????????? | | ?????????????????????????????????????????????????? | | ?????????????????????????????????????????????????? | | ?????????????????????????????????????????????????? | | ?????????????????????????????????????????????????? | | ?????????????????????????????????????????????????? | | ?????????????????????????????????????????????????? | | ?????????????????????????????????????????????????? | | ?????????????????????????????????????????????????? | | ?????????????????????????????????????????????????? | | ?????????????????????????????????????????????????? | +----------------------------------------------------+ Best States ------------- Heat Dissipation 60 Energy Generation 18 Energy Capacity 900 Matter Stores 300 Matter Capacity 300 Sight Range 22 Terrain Scan Density 10 ECM Strength 3 Jamming Range 8 Additional Mass Support 9 Armor Coverage 300 Resistance: KI 20 Core Shielding 20 Propulsion Shielding 90 Melee Speed Boost 20 Evasion (%) 72 Targeting Accuracy 10 Melee Accuracy 30 Target Analysis 6 Offensive Hacking 60 Defensive Hacking 24 Item Schematics ----------------- Hacking Suite | -7/Factory | Scanalyzed System Shield | -7/Factory | Hacked Adv. Melee Analysis Suite | -7/Factory | Hacked Mic. Fission Core | -7/Factory | Hacked Hyp. Gauss Rifle | -7/Factory | Hacked Gravmag Array | -7/Factory | Hacked Imp. Hacking Suite | -7/Factory | Hacked Adv. Weight Redist. System | -6/Factory | Scanalyzed Energy Well | -6/Factory | Scanalyzed Micro-nuke Launcher | -6/Factory | Scanalyzed Assault Drone Bay | -5/Zhirov | Free Exp. Heat Sink | -5/Zhirov | Free Exp. Optical Array | -5/Zhirov | Free Imp. Arc Thrower | -5/Zhirov | Free Robot Schematics ------------------ B-48 Gladiator | -7/Factory | Hacked H-55 Commando | -7/Factory | Hacked H-66 Slayer | -5/Factory | Hacked Fabricated ------------ Hacking Suite | x1 | -7/Factory Hacking Suite | x1 | -7/Factory Hacking Suite | x1 | -7/Factory Hacking Suite | x1 | -7/Factory Imp. Hacking Suite | x1 | -6/Factory Imp. Hacking Suite | x1 | -6/Factory Imp. Hacking Suite | x1 | -6/Factory Imp. Hacking Suite | x1 | -6/Factory Imp. Hacking Suite | x1 | -6/Factory Adv. Melee Analysis Suite | x1 | -6/Factory H-55 Commando | x2 | -5/Factory Alien Tech Used ----------------- Integrated Dissipator Transdimensional Reconstructor Achievements -------------- We Are Legion Challenges ------------ None Game ------ Seed SystemCoordinationConverter Manual? 0 Play Time 02:59:09 Cumulative 113.2 hours Start 2020.10.06 @ 00:50:02 End 2020.10.06 @ 04:21:56 Sessions 1 Manual Loads 0 Difficulty Rogue Special Mode None Game No. 164 Rogue 140 Adventurer 22 Explorer 2 Win Type - Total 1 Types 1/0/0/0/0/0/0/0/0 Lore% 49 Gallery% 53 Achievement% 43 Wizard Run 0 Options --------- ASCII 0 Keyboard 0 Movement Numpad Keybinds 0 Fullscreen 1 Font 14/SmallcapsGlow Map View 84x54 Tactical HUD 1 Map Filters NONE Filters NONE Steam 1 RUN: 97d897f3-609f-4173-939f-650e15a84f3d